fUSD/lending_fUSD_20240618
["ID","MTS","AMOUNT","RATE_DAILY","PERIOD"]
[329808131,1718685039080,-500.0,0.00021917,2]
[329808132,1718685039090,-500.0,0.00021917,2]
[329808133,1718685039100,-500.0,0.00021917,2]
[329808134,1718685039109,-500.0,0.00021917,2]
[329808135,1718685039120,-500.0,0.00021917,2]
[329808137,1718685039132,-925.97,0.00021917,2]
[329808139,1718685039146,-217.52746499,0.00021917,2]
[329808140,1718685039162,-282.47253501,0.00021917,2]
[329808141,1718685039172,-500.0,0.00021917,2]
[329808142,1718685039182,-507.3510807,0.00021917,2]
[329808143,1718685039192,-500.0,0.00021917,2]
[329808144,1718685039204,-500.0,0.00021917,2]
[329808145,1718685039217,-500.0,0.00021917,2]
[329808146,1718685039228,-500.0,0.00021917,2]
[329808147,1718685039239,-500.0,0.00021917,2]
[329808148,1718685039249,-500.0,0.00021917,2]
[329808149,1718685039258,-674.9,0.00021917,2]
[329808150,1718685039268,-142.49370637,0.00021917,2]
[329808151,1718685039280,-357.50629363,0.00021917,2]
[329808152,1718685039290,-500.0,0.00021917,2]
[329808153,1718685039301,-500.0,0.00021917,2]
[329808154,1718685039311,-500.0,0.00021917,2]
[329808155,1718685039321,-411.18035607,0.00021917,2]
[329808156,1718685039333,-94.77771867,0.00021917,2]
[329808157,1718685039343,-500.0,0.00021917,2]
[329808158,1718685039353,-500.0,0.00021917,2]
[329808159,1718685039363,-500.0,0.00021917,2]
[329808160,1718685039373,-500.0,0.00021917,2]
[329808161,1718685039382,-563.18554194,0.00021917,2]
[329808162,1718685039394,-500.0,0.00021917,2]
[329808163,1718685039404,-500.0,0.00021917,2]
[329808164,1718685039414,-500.0,0.00021917,2]
[329808165,1718685039424,-500.0,0.00021917,2]
[329808166,1718685039434,-609.21166312,0.00021917,2]
[329808167,1718685039444,-500.0,0.00021917,2]
[329808168,1718685039454,-500.0,0.00021917,2]
[329808169,1718685039464,-500.0,0.00021917,2]
[329808170,1718685039474,-500.0,0.00021917,2]
[329808171,1718685039484,-500.0,0.00021917,2]
[329808172,1718685039493,-201.99701096,0.00021917,2]
[329808173,1718685039506,-809.48298904,0.00021917,2]
[329808174,1718685039516,-500.0,0.00021917,2]
[329808175,1718685039526,-500.0,0.00021917,2]
[329808176,1718685039536,-500.0,0.00021917,2]
[329808177,1718685039546,-500.0,0.00021917,2]
[329808178,1718685039555,-500.0,0.00021917,2]
[329808179,1718685039564,-76.79231813,0.00021917,2]
[329808180,1718685039585,-423.20768187,0.00021917,2]
[329808181,1718685039594,-429.87959504,0.00021917,2]
[329808182,1718685039605,-73.41040496,0.00021917,2]
[329808183,1718685039615,-500.0,0.00021917,2]
[329808184,1718685039624,-688.54,0.00021917,2]
[329808185,1718685039633,-500.0,0.00021917,2]
[329808186,1718685039647,-500.0,0.00021917,2]
[329808187,1718685039656,-500.0,0.00021917,2]
[329808188,1718685039666,-500.0,0.00021917,2]
[329808189,1718685039675,-1049.32,0.00021917,2]
[329808190,1718685039684,-500.0,0.00021917,2]
[329808191,1718685039694,-500.0,0.00021917,2]
[329808192,1718685039705,-500.0,0.00021917,2]
[329808193,1718685039716,-500.0,0.00021917,2]
[329808194,1718685039726,-500.0,0.00021917,2]
[329808195,1718685039736,-500.0,0.00021917,2]
[329808196,1718685039746,-397.49634032,0.00021917,2]
[329808197,1718685039756,-430.66424904,0.00021917,2]
[329808198,1718685039769,-69.33575096,0.00021917,2]
[329808199,1718685039779,-243.93424904,0.00021917,2]
[329808200,1718685039791,-692.53575096,0.00021917,2]
[329808201,1718685039801,-515.69426478,0.00021917,2]
[329808202,1718685039811,-217.02187348,0.00021917,2]
[329808203,1718685039865,-432.68167204,0.00021917,2]
[329808204,1718685039877,-981.11645448,0.00021917,2]
[329808205,1718685039889,-473.12864744,0.00021917,2]
[329808206,1718685039906,-26.87135256,0.00021917,2]
[329808207,1718685039915,-500.0,0.00021917,2]
[329808208,1718685039924,-544.38797303,0.00021917,2]
[329808209,1718685039934,-500.0,0.00021917,2]
[329808210,1718685039943,-500.0,0.00021917,2]
[329808211,1718685039953,-500.0,0.00021917,2]
[329808212,1718685039964,-500.0,0.00021917,2]
[329808213,1718685039974,-500.0,0.00021917,2]
[329808214,1718685039984,-1073.75,0.00021917,2]
[329808215,1718685039994,-178.8531976,0.00021917,2]
[329808216,1718685040004,-500.0,0.00021917,2]
[329808217,1718685040015,-500.0,0.00021917,2]
[329808218,1718685040026,-525.78649861,0.00021917,2]
[329808219,1718685040036,-500.0,0.00021917,2]
[329808220,1718685040047,-500.0,0.00021917,2]
[329808221,1718685040058,-500.0,0.00021917,2]
[329808222,1718685040068,-500.0,0.00021917,2]
[329808223,1718685040078,-1081.63,0.00021917,2]
[329808224,1718685040088,-500.0,0.00021917,2]
[329808225,1718685040099,-500.0,0.00021917,2]
[329808226,1718685040108,-807.06,0.00021917,2]
[329808227,1718685040121,-500.0,0.00021917,2]
[329808228,1718685040132,-500.0,0.00021917,2]
[329808229,1718685040145,-500.0,0.00021917,2]
[329808230,1718685040155,-500.0,0.00021917,2]
[329808231,1718685040167,-500.0,0.00021917,2]
[329808232,1718685040176,-911.47,0.00021917,2]
[329808233,1718685040186,-500.0,0.00021917,2]
[329808234,1718685040196,-500.0,0.00021917,2]
[329808235,1718685040208,-500.0,0.00021917,2]
[329808236,1718685040219,-765.5,0.00021917,2]
[329808237,1718685040230,-527.48,0.00021917,2]
[329808238,1718685040240,-500.0,0.00021917,2]
[329808239,1718685040249,-500.0,0.00021917,2]
[329808240,1718685040260,-557.0,0.00021917,2]
[329808241,1718685040270,-534.07,0.00021917,2]
[329808242,1718685040279,-540.58185515,0.00021917,2]
[329808243,1718685040290,-500.0,0.00021917,2]
[329808244,1718685040299,-500.0,0.00021917,2]
[329808245,1718685040309,-500.0,0.00021917,2]
[329808246,1718685040319,-500.0,0.00021917,2]
[329808247,1718685040328,-1213.28,0.00021917,2]
[329808248,1718685040338,-500.0,0.00021917,2]
[329808249,1718685040347,-500.0,0.00021917,2]
[329808250,1718685040357,-813.98,0.00021917,2]
[329808253,1718685040370,-500.0,0.00021917,2]
[329808255,1718685040385,-500.0,0.00021917,2]
[329808257,1718685040398,-500.0,0.00021917,2]
[329808258,1718685040406,-500.0,0.00021917,2]
[329808259,1718685040416,-345.41229477,0.00021917,2]
[329808260,1718685040431,-154.58770523,0.00021917,2]
[329808261,1718685040442,-500.0,0.00021917,2]
[329808262,1718685040451,-500.0,0.00021917,2]
[329808263,1718685040461,-500.0,0.00021917,2]
[329808264,1718685040472,-500.0,0.00021917,2]
[329808265,1718685040482,-500.0,0.00021917,2]
[329808266,1718685040492,-987.47,0.00021917,2]
[329808267,1718685040501,-500.0,0.00021917,2]
[329808268,1718685040511,-500.0,0.00021917,2]
[329808269,1718685040522,-500.0,0.00021917,2]
[329808270,1718685040531,-59.61885803,0.00021917,2]
[329808271,1718685040544,-440.38114197,0.00021917,2]
[329808272,1718685040553,-580.3714945,0.00021917,2]
[329808273,1718685040562,-500.0,0.00021917,2]
[329808274,1718685040572,-500.0,0.00021917,2]
[329808275,1718685040582,-500.0,0.00021917,2]
[329808276,1718685040591,-500.0,0.00021917,2]
[329808277,1718685040810,-862.98,0.00021917,2]
[329808278,1718685040820,-500.0,0.00021917,2]
[329808279,1718685040830,-500.0,0.00021917,2]
[329808280,1718685040840,-674.81,0.00021917,2]
[329808281,1718685040849,-500.0,0.00021917,2]
[329808282,1718685040859,-500.0,0.00021917,2]
[329808283,1718685040869,-500.0,0.00021917,2]
[329808284,1718685040879,-500.0,0.00021917,2]
[329808285,1718685040898,-507.08,0.00021917,2]
[329808286,1718685040908,-500.0,0.00021917,2]
[329808287,1718685040919,-500.0,0.00021917,2]
[329808288,1718685040929,-500.0,0.00021917,2]
[329808289,1718685040938,-500.0,0.00021917,2]
[329808290,1718685040947,-500.0,0.00021917,2]
[329808291,1718685040956,-836.76,0.00021917,2]
[329808292,1718685040966,-534.0404802,0.00021917,2]
[329808293,1718685040974,-500.0,0.00021917,2]
[329808294,1718685040984,-412.69,0.00021917,7]
[329808295,1718685040994,-500.0,0.00021917,2]
[329808296,1718685041004,-500.0,0.00021917,2]
[329808297,1718685041013,-500.0,0.00021917,2]
[329808298,1718685041023,-500.0,0.00021917,2]
[329808299,1718685041033,-751.87,0.00021917,2]
[329808300,1718685041042,-1633.77,0.00021917,2]
[329808301,1718685041051,-549.24,0.00021917,2]
[329808302,1718685041060,-500.0,0.00021917,2]
[329808303,1718685041069,-500.0,0.00021917,2]
[329808304,1718685041078,-1072.84,0.00021917,2]
[329808305,1718685041087,-500.0,0.00021917,2]
[329808306,1718685041096,-500.0,0.00021917,2]
[329808307,1718685041105,-500.0,0.00021917,2]
[329808308,1718685041116,-1731.03171743,0.00021917,2]
[329808309,1718685041125,-500.0,0.00021917,2]
[329808310,1718685041141,-500.0,0.00021917,2]
[329808311,1718685041152,-500.0,0.00021917,2]
[329808312,1718685041162,-500.0,0.00021917,2]
[329808313,1718685041171,-500.0,0.00021917,2]
[329808314,1718685041180,-998.02,0.00021917,2]
[329808315,1718685041190,-507.27,0.00021917,2]
[329808316,1718685041200,-500.0,0.00021917,2]
[329808317,1718685041212,-500.0,0.00021917,2]
[329808318,1718685041221,-500.0,0.00021917,2]
[329808319,1718685041231,-1126.51,0.00021917,2]
[329808320,1718685041240,-500.0,0.00021917,2]
[329808321,1718685041248,-647.52575482,0.00021917,2]
[329808322,1718685041258,-1056.62,0.00021917,2]
[329808323,1718685041267,-500.0,0.00021917,2]
[329808324,1718685041278,-1140.55,0.00021917,2]
[329808325,1718685041287,-500.0,0.00021917,2]
[329808326,1718685041296,-692.82,0.00021917,2]
[329808327,1718685041306,-557.91168293,0.00021917,2]
[329808328,1718685041316,-500.0,0.00021917,2]
[329808329,1718685041325,-500.0,0.00021917,2]
[329808330,1718685041335,-933.98,0.00021917,2]
[329808331,1718685041344,-500.0,0.00021917,2]
[329808332,1718685041354,-500.0,0.00021917,2]
[329808333,1718685041363,-500.0,0.00021917,2]
[329808334,1718685041373,-1203.25,0.00021917,2]
[329808335,1718685041382,-245.15259855,0.00021917,2]
[329808336,1718685041394,-500.0,0.00021917,2]
[329808337,1718685041404,-500.0,0.00021917,2]
[329808338,1718685041413,-500.0,0.00021917,2]
[329808339,1718685041423,-1187.66918384,0.00021917,2]
[329808340,1718685041432,-500.0,0.00021917,2]
[329808341,1718685041442,-500.0,0.00021917,2]
[329808342,1718685041452,-500.0,0.00021917,2]
[329808343,1718685041462,-772.34,0.00021917,2]
[329808344,1718685041471,-505.92,0.00021917,2]
[329808345,1718685041481,-500.0,0.00021917,2]
[329808346,1718685041490,-654.76,0.00021917,2]
[329808347,1718685041499,-773.46,0.00021917,2]
[329808348,1718685041509,-500.0,0.00021917,2]
[329808349,1718685041519,-500.0,0.00021917,2]
[329808350,1718685041528,-500.0,0.00021917,2]
[329808351,1718685041537,-500.0,0.00021917,2]
[329808352,1718685041546,-500.0,0.00021917,2]
[329808353,1718685041556,-500.0,0.00021917,2]
[329808354,1718685041565,-513.23324814,0.00021917,2]
[329808355,1718685041574,-500.0,0.00021917,2]
[329808356,1718685041584,-1201.77,0.00021917,2]
[329808357,1718685041594,-500.0,0.00021917,2]
[329808358,1718685041603,-500.0,0.00021917,2]
[329808359,1718685041613,-982.49,0.00021917,2]
[329808360,1718685041623,-500.0,0.00021917,2]
[329808361,1718685041633,-500.0,0.00021917,2]
[329808362,1718685041644,-500.0,0.00021917,2]
[329808363,1718685041654,-500.0,0.00021917,2]
[329808364,1718685041662,-500.0,0.00021917,2]
[329808365,1718685041672,-677.99,0.00021917,2]
[329808366,1718685041682,-522.12424237,0.00021917,2]
[329808367,1718685041692,-500.0,0.00021917,2]
[329808368,1718685041701,-500.0,0.00021917,2]
[329808369,1718685041710,-500.0,0.00021917,2]
[329808370,1718685041720,-500.0,0.00021917,2]
[329808371,1718685041730,-513.37344579,0.00021917,2]
[329808372,1718685041740,-975.1,0.00021917,2]
[329808373,1718685041750,-500.0,0.00021917,2]
[329808374,1718685041760,-500.0,0.00021917,2]
[329808375,1718685041769,-500.0,0.00021917,2]
[329808376,1718685041778,-500.0,0.00021917,2]
[329808377,1718685041788,-500.0,0.00021917,2]
[329808378,1718685041797,-517.48,0.00021917,2]
[329808379,1718685041806,-500.0,0.00021917,2]
[329808380,1718685041815,-242.25528166,0.00021917,2]
[329808381,1718685041833,-257.74471834,0.00021917,2]
[329808382,1718685041843,-500.0,0.00021917,2]
[329808383,1718685041852,-500.0,0.00021917,2]
[329808384,1718685041862,-500.0,0.00021917,2]
[329808385,1718685041871,-500.0,0.00021917,2]
[329808386,1718685041881,-365.67083166,0.00021917,2]
[329808387,1718685041897,-134.32916834,0.00021917,2]
[329808388,1718685041906,-678.81,0.00021917,2]
[329808389,1718685041915,-500.38,0.00021917,2]
[329808390,1718685041923,-500.0,0.00021917,2]
[329808391,1718685041932,-500.0,0.00021917,2]
[329808392,1718685041941,-500.0,0.00021917,2]
[329808393,1718685041950,-500.0,0.00021917,2]
[329808394,1718685041959,-637.11,0.00021917,2]
[329808395,1718685041969,-1257.26,0.00021917,2]
[329808396,1718685041979,-500.0,0.00021917,2]
[329808397,1718685041989,-574.39,0.00021917,2]
[329808398,1718685041999,-500.0,0.00021917,2]
[329808399,1718685042008,-500.0,0.00021917,2]
[329808400,1718685042018,-500.0,0.00021917,2]
[329808401,1718685042027,-500.0,0.00021917,2]
[329808402,1718685042036,-500.0,0.00021917,2]
[329808403,1718685042046,-500.0,0.00021917,2]
[329808404,1718685042055,-500.0,0.00021917,2]
[329808405,1718685042065,-887.73,0.00021917,2]
[329808406,1718685042074,-680.4,0.00021917,2]
[329808407,1718685042084,-915.54,0.00021917,2]
[329808408,1718685042093,-500.0,0.00021917,2]
[329808409,1718685042103,-960.11,0.00021917,2]
[329808410,1718685042113,-474.99614786,0.00021917,2]
[329808411,1718685042132,-25.00385214,0.00021917,2]
[329808412,1718685042145,-500.0,0.00021917,2]
[329808413,1718685042154,-500.0,0.00021917,2]
[329808414,1718685042164,-593.76,0.00021917,2]
[329808415,1718685042173,-258.13711286,0.00021917,2]
[329808418,1718685042620,-241.86288714,0.00021917,2]
[329808419,1718685042630,-500.0,0.00021917,2]
[329808420,1718685042642,-500.0,0.00021917,2]
[329808421,1718685042652,-500.0,0.00021917,2]
[329808422,1718685042661,-500.0,0.00021917,2]
[329808424,1718685042671,-531.28,0.00021917,2]
[329808426,1718685042680,-500.0,0.00021917,2]
[329808428,1718685042689,-500.0,0.00021917,2]
[329808430,1718685042699,-500.0,0.00021917,2]
[329808432,1718685042708,-727.96,0.00021917,2]
[329808434,1718685042718,-500.0,0.00021917,2]
[329808436,1718685042727,-250.84147775,0.00021917,2]
[329808446,1718685043131,-249.15852225,0.00021917,2]
[329808447,1718685043141,-500.0,0.00021917,2]
[329808448,1718685043151,-389.22347487,0.00021917,2]
[329808449,1718685043162,-110.77652513,0.00021917,2]
[329808450,1718685043171,-439.02619285,0.00021917,2]
[329808451,1718685043183,-60.97380715,0.00021917,2]
[329808452,1718685043192,-500.0,0.00021917,2]
[329808453,1718685043201,-807.78,0.00021917,2]
[329808454,1718685043215,-500.0,0.00021917,2]
[329808455,1718685043226,-342.6317987,0.00021917,2]
[329808456,1718685043238,-170.77694229,0.00021917,2]
[329808457,1718685043247,-168.01689578,0.00021917,2]
[329808458,1718685043260,-300.0,0.00021917,2]
[329808459,1718685043277,-31.98310422,0.00021917,2]
[329808460,1718685043286,-500.0,0.00021917,2]
[329808461,1718685043295,-500.0,0.00021917,2]
[329808462,1718685043305,-557.09,0.00021917,2]
[329808463,1718685043316,-500.0,0.00021917,2]
[329808464,1718685043325,-500.0,0.00021917,2]
[329808465,1718685043335,-500.0,0.00021917,2]
[329808466,1718685043345,-500.0,0.00021917,2]
[329808467,1718685043354,-500.0,0.00021917,2]
[329808468,1718685043365,-500.0,0.00021917,2]
[329808469,1718685043375,-500.0,0.00021917,2]
[329808470,1718685043384,-500.0,0.00021917,2]
[329808471,1718685043395,-500.0,0.00021917,2]
[329808472,1718685043405,-500.0,0.00021917,2]
[329808473,1718685043414,-500.0,0.00021917,2]
[329808474,1718685043423,-549.49,0.00021917,2]
[329808475,1718685043433,-928.98,0.00021917,2]
[329808476,1718685043443,-507.71,0.00021917,2]
[329808477,1718685043453,-500.0,0.00021917,2]
[329808478,1718685043463,-500.0,0.00021917,2]
[329808479,1718685043473,-500.0,0.00021917,2]
[329808480,1718685043483,-1508.16,0.00021917,2]
[329808481,1718685043493,-500.0,0.00021917,2]
[329808482,1718685043504,-500.0,0.00021917,2]
[329808483,1718685043515,-500.0,0.00021917,2]
[329808484,1718685043524,-604.35577533,0.00021917,2]
[329808485,1718685043535,-500.0,0.00021917,2]
[329808486,1718685043545,-500.0,0.00021917,2]
[329808487,1718685043555,-611.45,0.00021917,2]
[329808488,1718685043564,-500.0,0.00021917,2]
[329808489,1718685043574,-755.64,0.00021917,2]
[329808490,1718685043583,-500.0,0.00021917,2]
[329808491,1718685043593,-500.0,0.00021917,2]
[329808492,1718685043602,-500.0,0.00021917,2]
[329808493,1718685043612,-602.88,0.00021917,2]
[329808494,1718685043621,-553.53941184,0.00021917,2]
[329808495,1718685043630,-699.21,0.00021917,2]
[329808496,1718685043641,-500.0,0.00021917,2]
[329808497,1718685043651,-500.0,0.00021917,2]
[329808498,1718685043660,-500.0,0.00021917,2]
[329808499,1718685043670,-923.1,0.00021917,2]
[329808500,1718685043680,-500.0,0.00021917,2]
[329808501,1718685043689,-500.0,0.00021917,2]
[329808502,1718685043698,-500.0,0.00021917,2]
[329808503,1718685043707,-500.0,0.00021917,2]
[329808504,1718685043717,-954.76,0.00021917,2]
[329808505,1718685043727,-500.0,0.00021917,2]
[329808506,1718685043736,-500.0,0.00021917,2]
[329808507,1718685043745,-500.0,0.00021917,2]
[329808508,1718685043754,-500.0,0.00021917,2]
[329808509,1718685043763,-1039.91,0.00021917,2]
[329808510,1718685043772,-500.0,0.00021917,2]
[329808511,1718685043781,-798.3,0.00021917,2]
[329808512,1718685043790,-500.0,0.00021917,2]
[329808513,1718685043799,-500.0,0.00021917,2]
[329808514,1718685043808,-500.0,0.00021917,2]
[329808515,1718685043817,-500.0,0.00021917,2]
[329808516,1718685043827,-500.0,0.00021917,2]
[329808517,1718685043835,-500.0,0.00021917,2]
[329808518,1718685043844,-504.77549509,0.00021917,2]
[329808520,1718685043853,-598.17,0.00021917,2]
[329808522,1718685043864,-973.45,0.00021917,2]
[329808523,1718685043873,-500.0,0.00021917,2]
[329808524,1718685043882,-500.0,0.00021917,2]
[329808525,1718685043894,-500.0,0.00021917,2]
[329808526,1718685043903,-621.41,0.00021917,2]
[329808527,1718685043923,-500.0,0.00021917,2]
[329808528,1718685043933,-553.980336,0.00021917,2]
[329808529,1718685043942,-500.0,0.00021917,2]
[329808530,1718685043952,-524.10680013,0.00021917,2]
[329808531,1718685043962,-500.0,0.00021917,2]
[329808532,1718685043971,-500.0,0.00021917,2]
[329808533,1718685043981,-500.0,0.00021917,2]
[329808534,1718685043991,-756.77,0.00021917,2]
[329808535,1718685044002,-1058.85,0.00021917,2]
[329808536,1718685044012,-500.0,0.00021917,2]
[329808537,1718685044022,-794.1,0.00021917,2]
[329808538,1718685044031,-500.0,0.00021917,2]
[329808539,1718685044041,-649.07,0.00021917,2]
[329808540,1718685044051,-449.52698628,0.00021917,2]
[329808541,1718685044060,-500.0,0.00021917,2]
[329808542,1718685044070,-500.0,0.00021917,2]
[329808543,1718685044080,-576.14249522,0.00021917,2]
[329808544,1718685044090,-1042.72,0.00021917,2]
[329808545,1718685044099,-500.0,0.00021917,2]
[329808546,1718685044109,-1165.0,0.00021917,2]
[329808547,1718685044121,-1580.52,0.00021917,2]
[329808548,1718685044132,-518.73,0.00021917,2]
[329808549,1718685044143,-500.0,0.00021917,2]
[329808550,1718685044153,-500.0,0.00021917,2]
[329808551,1718685044164,-500.0,0.00021917,2]
[329808552,1718685044174,-500.0,0.00021917,2]
[329808553,1718685044184,-516.96,0.00021917,2]
[329808554,1718685044193,-500.0,0.00021917,2]
[329808555,1718685044205,-500.0,0.00021917,2]
[329808556,1718685044215,-500.0,0.00021917,2]
[329808557,1718685044225,-500.0,0.00021917,2]
[329808558,1718685044559,-500.0,0.00021917,2]
[329808559,1718685044569,-587.07,0.00021917,2]
[329808560,1718685044578,-500.0,0.00021917,2]
[329808561,1718685044587,-522.39104824,0.00021917,2]
[329808562,1718685044596,-500.0,0.00021917,2]
[329808563,1718685044605,-513.50584864,0.00021917,2]
[329808564,1718685044614,-500.0,0.00021917,2]
[329808565,1718685044623,-889.26,0.00021917,2]
[329808566,1718685044633,-500.0,0.00021917,2]
[329808567,1718685044644,-500.0,0.00021917,2]
[329808568,1718685044653,-500.0,0.00021917,2]
[329808569,1718685044662,-500.0,0.00021917,2]
[329808570,1718685044671,-1081.27,0.00021917,2]
[329808571,1718685044681,-500.0,0.00021917,2]
[329808572,1718685044690,-500.0,0.00021917,2]
[329808573,1718685044699,-500.0,0.00021917,2]
[329808574,1718685044708,-500.0,0.00021917,2]
[329808575,1718685044717,-500.0,0.00021917,2]
[329808576,1718685044727,-500.0,0.00021917,2]
[329808577,1718685044736,-582.81,0.00021917,2]
[329808578,1718685044745,-527.64,0.00021917,2]
[329808579,1718685044755,-500.0,0.00021917,2]
[329808580,1718685044764,-500.0,0.00021917,2]
[329808581,1718685044773,-830.23,0.00021917,2]
[329808582,1718685044782,-500.0,0.00021917,2]
[329808583,1718685044791,-500.0,0.00021917,2]
[329808584,1718685044801,-500.0,0.00021917,2]
[329808585,1718685044810,-500.0,0.00021917,2]
[329808586,1718685044819,-500.0,0.00021917,2]
[329808587,1718685044828,-1089.72,0.00021917,2]
[329808588,1718685044837,-1209.96,0.00021917,2]
[329808589,1718685044847,-500.0,0.00021917,2]
[329808590,1718685044856,-500.0,0.00021917,2]
[329808591,1718685044866,-303.32,0.00021917,2]
[329808592,1718685044875,-500.0,0.00021917,2]
[329808593,1718685044885,-500.0,0.00021917,2]
[329808594,1718685044896,-500.0,0.00021917,2]
[329808595,1718685044905,-500.0,0.00021917,2]
[329808596,1718685044915,-500.0,0.00021917,2]
[329808597,1718685044924,-500.0,0.00021917,2]
[329808598,1718685044933,-589.06,0.00021917,2]
[329808599,1718685044943,-500.0,0.00021917,2]
[329808600,1718685044952,-504.96768977,0.00021917,2]
[329808601,1718685044961,-500.0,0.00021917,2]
[329808602,1718685044971,-500.0,0.00021917,2]
[329808603,1718685044980,-735.86,0.00021917,2]
[329808604,1718685044990,-1508.65,0.00021917,2]
[329808605,1718685044999,-500.0,0.00021917,2]
[329808606,1718685045009,-976.48,0.00021917,2]
[329808607,1718685045019,-500.0,0.00021917,2]
[329808608,1718685045029,-500.0,0.00021917,2]
[329808609,1718685045038,-500.0,0.00021917,2]
[329808610,1718685045048,-500.0,0.00021917,2]
[329808611,1718685045057,-500.0,0.00021917,2]
[329808612,1718685045069,-233.45385615,0.00021917,2]
[329808613,1718685045079,-1186.63,0.00021917,2]
[329808614,1718685045089,-500.0,0.00021917,2]
[329808615,1718685045099,-500.0,0.00021917,2]
[329808616,1718685045108,-666.92,0.00021917,2]
[329808617,1718685045118,-500.0,0.00021917,2]
[329808618,1718685045129,-815.8,0.00021917,2]
[329808619,1718685045142,-667.03,0.00021917,2]
[329808620,1718685045152,-500.0,0.00021917,2]
[329808621,1718685045161,-500.0,0.00021917,2]
[329808622,1718685045171,-596.21,0.00021917,2]
[329808623,1718685045180,-500.0,0.00021917,2]
[329808624,1718685045189,-9241.56,0.00021917,2]
[329808625,1718685045199,-533.77984536,0.00021917,2]
[329808626,1718685045212,-500.0,0.00021917,2]
[329808627,1718685045222,-542.39,0.00021917,2]
[329808628,1718685045231,-745.99,0.00021917,2]
[329808629,1718685045240,-500.0,0.00021917,2]
[329808630,1718685045250,-500.0,0.00021917,2]
[329808631,1718685045259,-500.0,0.00021917,2]
[329808632,1718685045269,-500.0,0.00021917,2]
[329808633,1718685045278,-177.75819689,0.00021917,2]
[329808634,1718685045306,-322.24180311,0.00021917,2]
[329808635,1718685045315,-500.0,0.00021917,2]
[329808636,1718685045324,-665.68253988,0.00021917,2]
[329808637,1718685045336,-387.72733961,0.00021917,2]
[329808638,1718685045351,-403.08586807,0.00021917,2]
[329808639,1718685045363,-3523.47425244,0.00021917,2]
[329808640,1718685045372,-500.0,0.00021917,2]
[329808641,1718685045382,-252.57256556,0.00021917,2]
[329808642,1718685045399,-247.42743444,0.00021917,2]
[329808643,1718685045409,-364.50246558,0.00021917,2]
[329808646,1718685045530,-151.36045417,0.00021917,2]
[329808648,1718685045540,-893.04,0.00021917,2]
[329808649,1718685045549,-500.0,0.00021917,2]
[329808651,1718685045559,-500.0,0.00021917,2]
[329808652,1718685045568,-500.0,0.00021917,2]
[329808653,1718685045578,-601.38,0.00021917,2]
[329808654,1718685045587,-1212.67,0.00021917,2]
[329808656,1718685045597,-500.0,0.00021917,2]
[329808657,1718685045607,-855.63,0.00021917,2]
[329808658,1718685045616,-500.0,0.00021917,2]
[329808659,1718685045629,-500.0,0.00021917,2]
[329808660,1718685045639,-500.0,0.00021917,2]
[329808661,1718685045653,-1913.81,0.00021917,2]